Workbook

Sheet START
L2: ながさきで暮らす。
L3: ー移住シミュレーションー
L4: 長崎での暮らしをイメージしてみよう。
L6: 移住シミュレーションのご利用前に必ずお読みください。
L7: 〇本シミュレーションは、入力された内容や統計値をもとに計算をしております。
L8: 結果の正確性、完全性について保証するものではありません。
L9: ＜教育費＞
L10: 幼稚園～高校：文部科学省「令和３年度子供学習費調査」より、所在市町村の規模別の
L11: うち、（5万人以上15万人未満）と（15万人以上）の平均値を設定
L12: 大学：日本政策金融公庫「教育費負担の実態調査結果（2021年12月20日）」より設定
L13: 〇本シミュレーションは、予告なしに内容を変更・削除する場合があります。
L14: 〇本シミュレーションのご利用により利用者に生じた如何なる損害についても一切の責任を
L15: 負い兼ねます。
L16: 本シミュレーションを利用するにあたっては、以上の事項に同意していただくものとします。

Sheet 結果シート
A1: 生活シミュレーション結果
A3: 項目/年度 | C3: =TEXT(DATE(YEAR(TODAY()),MONTH(TODAY()), DAY(TODAY())),"ggge年") -> 令和6年 | D3: =TEXT(DATE(YEAR(TODAY())+1,MONTH(TODAY()), DAY(TODAY())),"ggge年") -> 令和7年 | E3: =TEXT(DATE(YEAR(TODAY())+2,MONTH(TODAY()), DAY(TODAY())),"ggge年") -> 令和8年 | F3: =TEXT(DATE(YEAR(TODAY())+3,MONTH(TODAY()), DAY(TODAY())),"ggge年") -> 令和9年 | G3: =TEXT(DATE(YEAR(TODAY())+4,MONTH(TODAY()), DAY(TODAY())),"ggge年") -> 令和10年 | H3: =TEXT(DATE(YEAR(TODAY())+5,MONTH(TODAY()), DAY(TODAY())),"ggge年") -> 令和11年 | I3: =TEXT(DATE(YEAR(TODAY())+6,MONTH(TODAY()), DAY(TODAY())),"ggge年") -> 令和12年 | J3: =TEXT(DATE(YEAR(TODAY())+7,MONTH(TODAY()), DAY(TODAY())),"ggge年") -> 令和13年 | K3: =TEXT(DATE(YEAR(TODAY())+8,MONTH(TODAY()), DAY(TODAY())),"ggge年") -> 令和14年 | L3: =TEXT(DATE(YEAR(TODAY())+9,MONTH(TODAY()), DAY(TODAY())),"ggge年") -> 令和15年 | M3: =TEXT(DATE(YEAR(TODAY())+10,MONTH(TODAY()), DAY(TODAY())),"ggge年") -> 令和16年
C4: 現在 | D4: 移住1年目 | E4: 2年目 | F4: 3年目 | G4: 4年目 | H4: 5年目 | I4: 6年目 | J4: 7年目 | K4: 8年目 | L4: 9年目 | M4: 10年目
A5: 世帯員１
A6: 世帯員２
A7: 世帯員３（子）
A8: 世帯員４（子）
A9: 世帯員５（子）
A10: ライフイベント
A13: 収入 | B13: 世帯員１収入
B14: 世帯員２収入
B15: その他収入 （入力可）
B16: 計（万円） | C16: =SUM(C13:C15) -> 0 | D16: =SUM(D13:D15) -> 0 | E16: 0 | F16: 0 | G16: 0 | H16: 0 | I16: 0 | J16: 0 | K16: 0 | L16: 0 | M16: =SUM(M13:M15) -> 0
A17: 支出 | B17: 食費
B18: 住居費
B19: 水道光熱費
B20: 生活用品・衣類・美容費
B21: 通信費
B22: 交通費
B23: 医療・保険費
B24: 教養・娯楽費
B25: 任意保険料費
B26: 教育費（※）
B27: その他支出 （入力可）
B28: 計 | C28: =ROUND(SUM(C17:C27),0) -> 0 | D28: =ROUND(SUM(D17:D27),0) -> 0 | E28: 0 | F28: 0 | G28: 0 | H28: 0 | I28: 0 | J28: 0 | K28: 0 | L28: 0 | M28: 0
A29: 年間収支（万円） | C29: =C16-C28 -> 0 | D29: =D16-D28 -> 0 | E29: =E16-E28 -> 0 | F29: 0 | G29: 0 | H29: 0 | I29: 0 | J29: 0 | K29: 0 | L29: 0 | M29: 0
A30: 貯蓄残高（万円） | D30: =C30+D29 -> 0 | E30: =D30+E29 -> 0 | F30: =E30+F29 -> 0 | G30: 0 | H30: =G30+H29 -> 0 | I30: 0 | J30: 0 | K30: 0 | L30: 0 | M30: 0
B32: ※教育費：22歳以下の世帯員がいる場合、その人数および年齢に応じて教育費を自動で算出しています。

Sheet 結果シート（+営農）
A1: 営農シミュレーション結果
A3: 項目/年度 | K3: 営農開始した１年目には
A5: 世帯員１ | K5: の初期費用がかかります。
A6: 世帯員２
A7: 世帯員３（子） | K7: １年目に必要な農具類と目安金額は、以下のとおりです。
A8: 世帯員４（子）
A9: 世帯員５（子）
A10: 収入 | B10: 世帯員１収入
B11: 世帯員２収入
B12: その他収入 （入力可）
B13: 農業収入
B14: 計（万円） | C14: =SUM(C10:C13) -> 0 | D14: =SUM(D10:D13) -> 0 | E14: 0 | F14: 0 | G14: 0 | H14: =SUM(H10:H13) -> 0
A15: 支出 | B15: 食費
B16: 住居費
B17: 水道光熱費
B18: 生活用品・衣類・美容費
B19: 通信費
B20: 交通費
B21: 医療・保険費
B22: 教養・娯楽費
B23: 任意保険料費
B24: 教育費（※）
B25: その他支出 （入力可）
B26: 農業支出
B27: 計 | C27: =SUM(C15:C26) -> 0 | D27: =SUM(D15:D26) -> 0 | E27: 0 | F27: 0 | G27: 0 | H27: 0
A28: 年間収支（万円） | C28: =C14-C27 -> 0 | D28: 0 | E28: 0 | F28: 0 | G28: 0 | H28: 0
A29: 貯蓄残高（万円） | D29: =C29+D28 -> 0 | E29: =D29+E28 -> 0 | F29: =E29+F28 -> 0 | G29: =F29+G28 -> 0 | H29: =G29+H28 -> 0
B31: ※教育費：22歳以下の世帯員がいる場合、その人数および年齢に応じて教育費を自動で算出しています。
K37: 作 物 名 | L37: １月 | M37: ２月 | N37: ３月 | O37: ４月 | P37: ５月 | Q37: ６月 | R37: ７月 | S37: ８月 | T37: ９月 | U37: １０月 | V37: １１月 | W37: １２月

Sheet データsh (hidden)
A1: 項目名 | B1: 入力値 | C1: 現在 | D1: 移住１年目 | E1: 移住２年目 | F1: 移住３年目 | G1: 移住４年目 | H1: 移住５年目 | I1: 移住６年目 | J1: 移住７年目 | K1: 移住８年目 | L1: 移住９年目 | M1: 移住１０年目
A2: 世帯情報（１：単身 ２：２人以上）
A3: 世帯員①年齢 | C3: =B3 -> 0 | D3: =IF(OR(ISBLANK(C3),C3+1<0),"",C3+1) -> 1 | E3: =IF(OR(ISBLANK(C3),C3+2<0),"",C3+2) -> 2 | F3: =IF(OR(ISBLANK(C3),C3+3<0),"",C3+3) -> 3 | G3: =IF(OR(ISBLANK(C3),C3+4<0),"",C3+4) -> 4 | H3: =IF(OR(ISBLANK(C3),C3+5<0),"",C3+5) -> 5 | I3: =IF(OR(ISBLANK(C3),C3+6<0),"",C3+6) -> 6 | J3: =IF(OR(ISBLANK(C3),C3+7<0),"",C3+7) -> 7 | K3: =IF(OR(ISBLANK(C3),C3+8<0),"",C3+8) -> 8 | L3: =IF(OR(ISBLANK(C3),C3+9<0),"",C3+9) -> 9 | M3: =IF(OR(ISBLANK(C3),C3+10<0),"",C3+10) -> 10
A4: 世帯員②年齢
A5: 子ども①年齢 | D5: =IF(OR(ISBLANK(C5),C5+1<0),"",C5+1) ->  | E5: =IF(OR(ISBLANK(C5),C5+2<0),"",C5+2) ->  | F5: =IF(OR(ISBLANK(C5),C5+3<0),"",C5+3) ->  | G5: =IF(OR(ISBLANK(C5),C5+4<0),"",C5+4) ->  | H5: =IF(OR(ISBLANK(C5),C5+5<0),"",C5+5) ->  | I5: =IF(OR(ISBLANK(C5),C5+6<0),"",C5+6) ->  | J5: =IF(OR(ISBLANK(C5),C5+7<0),"",C5+7) ->  | K5: =IF(OR(ISBLANK(C5),C5+8<0),"",C5+8) ->  | L5: =IF(OR(ISBLANK(C5),C5+9<0),"",C5+9) ->  | M5: =IF(OR(ISBLANK(C5),C5+10<0),"",C5+10) -> 
A6: 子ども②年齢 | D6: =IF(OR(ISBLANK(C6),C6+1<0),"",C6+1) ->  | E6: =IF(OR(ISBLANK(C6),C6+2<0),"",C6+2) ->  | F6: =IF(OR(ISBLANK(C6),C6+3<0),"",C6+3) ->  | G6: =IF(OR(ISBLANK(C6),C6+4<0),"",C6+4) ->  | H6: =IF(OR(ISBLANK(C6),C6+5<0),"",C6+5) ->  | I6: =IF(OR(ISBLANK(C6),C6+6<0),"",C6+6) ->  | J6: =IF(OR(ISBLANK(C6),C6+7<0),"",C6+7) ->  | K6: =IF(OR(ISBLANK(C6),C6+8<0),"",C6+8) ->  | L6: =IF(OR(ISBLANK(C6),C6+9<0),"",C6+9) ->  | M6: =IF(OR(ISBLANK(C6),C6+10<0),"",C6+10) -> 
A7: 子ども③年齢
A8: ライフイベント 子ども①
A9: ライフイベント 子ども②
A10: ライフイベント 子ども③
A11: 教育費 子ども①
A12: 教育費 子ども②
A13: 教育費 子ども③
A14: 教育費 合計 | C14: =SUM(C11:C13) -> 0 | D14: 0 | E14: 0 | F14: 0 | G14: 0 | H14: 0 | I14: 0 | J14: 0 | K14: =SUM(K11:K13) -> 0 | L14: =SUM(L11:L13) -> 0 | M14: =SUM(M11:M13) -> 0
A15: 手取り収入 世帯員① | C15: =IF($B15="","",$B15) ->  | L15: =IF($B15="","",$B15) ->  | M15: =IF($B15="","",$B15) -> 
A16: 手取り収入 世帯員② | M16: =IF($B16="","",$B16) -> 
A17: 貯蓄額
A18: 食費 | C18: =ROUND($B18*C$27/10000,1) -> 0 | D18: =ROUND($B18*D$27/10000,1) -> 0 | E18: 0 | F18: 0 | G18: =ROUND($B18*G$27/10000,1) -> 0 | H18: 0 | I18: 0 | J18: 0 | K18: 0 | L18: 0 | M18: 0
A19: 家賃 | C19: =ROUND(($B19*12)/10000,1) -> 0 | D19: =$C19 -> 0 | E19: =$C19 -> 0 | F19: 0 | G19: 0 | H19: 0 | I19: 0 | J19: 0 | K19: 0 | L19: 0 | M19: 0
A20: 水道光熱費 | C20: =ROUND($B20*$C$27/10000,1) -> 0 | D20: =ROUND($B20*D$27/10000,1) -> 0 | E20: =ROUND($B20*E$27/10000,1) -> 0 | F20: =ROUND($B20*F$27/10000,1) -> 0 | G20: 0 | H20: =ROUND($B20*H$27/10000,1) -> 0 | I20: 0 | J20: 0 | K20: 0 | L20: 0 | M20: 0
A21: 生活用品・衣類・美容費 | C21: =ROUND($B21*C$27/10000,1) -> 0 | D21: =ROUND($B21*D$27/10000,1) -> 0 | E21: 0 | F21: 0 | G21: 0 | H21: 0 | I21: 0 | J21: 0 | K21: 0 | L21: 0 | M21: 0
A22: 通信費 | C22: 0 | D22: 0 | E22: 0 | F22: 0 | G22: 0 | H22: 0 | I22: 0 | J22: 0 | K22: 0 | L22: 0 | M22: 0
A23: 交通費 | C23: 0 | D23: 0 | E23: 0 | F23: 0 | G23: 0 | H23: 0 | I23: 0 | J23: 0 | K23: 0 | L23: 0 | M23: 0
A24: 医療・保険費 | C24: 0 | D24: 0 | E24: 0 | F24: 0 | G24: 0 | H24: 0 | I24: 0 | J24: 0 | K24: 0 | L24: 0 | M24: 0
A25: 教養・娯楽費 | C25: 0 | D25: 0 | E25: 0 | F25: 0 | G25: 0 | H25: 0 | I25: 0 | J25: 0 | K25: 0 | L25: 0 | M25: 0
A26: 任意保険料費 | C26: 0 | D26: 0 | E26: 0 | F26: 0 | G26: 0 | H26: 0 | I26: 0 | J26: 0 | K26: 0 | L26: 0 | M26: 0
A27: 世帯人数（入力値より計算） | C27: =SUMPRODUCT((C3:C7>=0)*(C3:C7<>"")) -> 1 | D27: =SUMPRODUCT((D3:D7>=0)*(D3:D7<>"")) -> 1 | E27: =SUMPRODUCT((E3:E7>=0)*(E3:E7<>"")) -> 1 | F27: 1 | G27: 1 | H27: 1 | I27: 1 | J27: 1 | K27: 1 | L27: 1 | M27: 1
C32: ：マクロで値を入力するセル
C33: ：計算式ありセル
C34: ：参照式セル
B36: 結果シート | C36: リリース前に必ず実行してください。
B37: 結果シート(+営農)
B38: データｓｈ
B39: 営農SL_DB

Sheet マスタsh (hidden)
A1: 世帯員①②年齢 | B1: 子ども年齢 | C1: 世帯員①②年収、貯蓄額共通 | D1: 家賃 | E1: 農業従事人数 | F1: 作業日数 | G1: 作業時間数 | H1: 経営品目
A2: 18 | B2: なし | C2: 0 | D2: 0 | E2: １人 | F2: 週６日 | G2: 最大８時間 | H2: 夏秋なす
A3: 19 | B3: 0 | C3: 50 | D3: 5000 | E3: ２人 | F3: 週５日 | G3: 最大７時間 | H3: オクラ
A4: 20 | B4: 1 | C4: 100 | D4: 10000 | E4: ３人 | F4: 週４日 | G4: 最大６時間 | H4: 露地スナップえんどう
A5: 21 | B5: 2 | C5: 150 | D5: 15000 | E5: ４人 | F5: 週３日 | G5: 最大５時間 | H5: 露地いんげん
A6: 22 | B6: 3 | C6: 200 | D6: 20000 | G6: 最大４時間 | H6: サトイモ
A7: 23 | B7: 4 | C7: 250 | D7: 25000 | G7: 最大３時間
A8: 24 | B8: 5 | C8: 300 | D8: 30000
A9: 25 | B9: 6 | C9: 350 | D9: 35000
A10: 26 | B10: 7 | C10: 400 | D10: 40000
A11: 27 | B11: 8 | C11: 450 | D11: 45000
A12: 28 | B12: 9 | C12: 500 | D12: 50000
A13: 29 | B13: 10 | C13: 550 | D13: 55000
A14: 30 | B14: 11 | C14: 600 | D14: 60000
A15: 31 | B15: 12 | C15: 650 | D15: 65000
A16: 32 | B16: 13 | C16: 700 | D16: 70000
A17: 33 | B17: 14 | C17: 800 | D17: 75000
A18: 34 | B18: 15 | C18: 900 | D18: 80000
A19: 35 | B19: 16 | C19: 1000 | D19: 85000
A20: 36 | B20: 17 | D20: 90000
A21: 37 | B21: 18 | D21: 95000
A22: 38 | B22: 19 | D22: 100000
A23: 39 | B23: 20 | D23: 110000
A24: 40 | B24: 21 | D24: 120000
A25: 41 | B25: 22 | D25: 130000
A26: 42 | B26: １年後に出産予定 | D26: 140000
A27: 43 | B27: ２年後に出産予定 | D27: 150000
A28: 44 | B28: ３年後に出産予定 | D28: 160000
A29: 45 | B29: ４年後に出産予定 | D29: 170000
A30: 46 | B30: ５年後に出産予定 | D30: 180000
A31: 47 | D31: 190000
A32: 48 | D32: 200000
A33: 49
A34: 50
A35: 51
A36: 52
A37: 53
A38: 54
A39: 55
A40: 56
A41: 57
A42: 58
A43: 59
A44: 60
A45: 61
A46: 62
A47: 63
A48: 64
A49: 65
A50: 66
A51: 67
A52: 68
A53: 69
A54: 70
A55: 71
A56: 72
A57: 73
A58: 74
A59: 75
A60: 76
A61: 77
A62: 78
A63: 79
A64: 80
A65: 81
A66: 82
A67: 83
A68: 84
A69: 85
A70: なし

Sheet 生活SL_DB
B1: 2020年
B2: Ⅰ 二人以上の世帯（勤労世帯のみ比較）
E3: 年間(１人あたり) | J3: 1ヶ月(１人あたり)
B4: 用途分類 | C4: 単位 | D4: 42201 長崎市 | E4: 0.6 | F4: 0.8 | G4: 1 | H4: 1.2 | I4: 1.4 | J4: 0.6 | K4: 0.8 | L4: 1 | M4: 1.2 | N4: 1.4
B5: 集計世帯数 | C5: 世帯 | D5: 42
B6: 世帯人員 | C6: 人 | D6: 3.28 | R6: 2023
B7: 有業人員 | C7: 人 | D7: 1.83 | Q7: 食費 | R7: 61128
B8: 世帯主の年齢 | C8: 歳 | D8: 50.6 | P8: A | Q8: 生活用品 | R8: 12904
B9: 消費支出 | C9: 円 | D9: 278676 | P9: B | Q9: 衣類 | R9: 9103
A10: ① | B10: 食料 | C10: 円 | D10: 64329 | E10: =ROUND($D10/$D$6*E$4*12,0) -> 141210 | F10: =ROUND($D10/$D$6*F$4*12,0) -> 188280 | G10: =ROUND($D10/$D$6*G$4*12,0) -> 235350 | H10: =ROUND($D10/$D$6*H$4*12,0) -> 282420 | I10: =ROUND($D10/$D$6*I$4*12,0) -> 329490 | J10: =ROUND($D10/$D$6*J$4,0) -> 11768 | K10: =ROUND($D10/$D$6*K$4,0) -> 15690 | L10: =ROUND($D10/$D$6*L$4,0) -> 19613 | M10: =ROUND($D10/$D$6*M$4,0) -> 23535 | N10: =ROUND($D10/$D$6*N$4,0) -> 27458 | P10: C | Q10: 美容代 | R10: 7369
A11: ② | B11: 水道光熱費 | C11: 円 | D11: 21496 | E11: =ROUND($D11/$D$6*E$4*12,0) -> 47186 | F11: =ROUND($D11/$D$6*F$4*12,0) -> 62915 | G11: 78644 | H11: 94373 | I11: 110101 | J11: =ROUND($D11/$D$6*J$4,0) -> 3932 | K11: 5243 | L11: 6554 | M11: 7864 | N11: 9175 | P11: D | Q11: 家賃 | R11: 13886
A12: ③ | B12: 生活用品費 | C12: 円 | D12: 12119 | E12: =ROUND($D12/$D$6*E$4*12,0) -> 26603 | F12: 35470 | G12: 44338 | H12: 53205 | I12: 62073 | J12: 2217 | K12: 2956 | L12: 3695 | M12: 4434 | N12: 5173 | P12: E | Q12: 水道光熱費 | R12: 21559
A13: ④ | B13: 衣類 | C13: 円 | D13: 10812 | E13: 23734 | F13: 31645 | G13: 39556 | H13: 47467 | I13: 55379 | J13: 1978 | K13: 2637 | L13: 3296 | M13: 3956 | N13: 4615 | P13: F | Q13: 家電・家具費 | R13: 5306
A14: ⑤ | B14: 美容代 | C14: 円 | D14: 8306 | E14: 18233 | F14: 24310 | G14: 30388 | H14: 36465 | I14: 42543 | J14: 1519 | K14: 2026 | L14: 2532 | M14: 3039 | N14: 3545 | P14: G | Q14: 通信費 | R14: 14531
A15: ⑥ | B15: 家電・家具費 | C15: 円 | D15: 4041 | E15: 8870 | F15: 11827 | G15: 14784 | H15: 17741 | I15: 20698 | J15: 739 | K15: 986 | L15: 1232 | M15: 1478 | N15: 1725 | P15: H | Q15: 自動車維持費 | R15: 25178
B16: ③～⑥ | E16: =SUM(E12:E15) -> 77440 | F16: 103252 | G16: 129066 | H16: 154878 | I16: 180693 | J16: 6453 | K16: 8605 | L16: 10755 | M16: 12907 | N16: 15058 | P16: I | Q16: 交通費 | R16: 4251
A17: ⑦ | B17: 通信費 | C17: 円 | D17: 11989 | E17: =ROUND($D17/$D$6*E$4*12,0) -> 26317 | F17: 35090 | G17: 43862 | H17: 52635 | I17: 61407 | J17: =ROUND($D17/$D$6*J$4,0) -> 2193 | K17: 2924 | L17: 3655 | M17: 4386 | N17: 5117 | P17: J | Q17: 保健医療費 | R17: 13423
A18: ⑧ | B18: 自動車維持費 | C18: 円 | D18: 32470 | E18: 71276 | F18: 95034 | G18: 118793 | H18: 142551 | I18: 166310 | J18: 5940 | K18: 7920 | L18: 9899 | M18: 11879 | N18: 13859 | P18: K | Q18: 娯楽・その他 | R18: 79678
A19: ⑨ | B19: 交通費 | C19: 円 | D19: 5267 | E19: 11562 | F19: 15416 | G19: 19270 | H19: 23123 | I19: 26977 | J19: 963 | K19: 1285 | L19: 1606 | M19: 1927 | N19: 2248 | P19: L | Q19: 教育費 | R19: 10807
B20: ⑧～⑨ | E20: =SUM(E18:E19) -> 82838 | F20: 110450 | G20: 138063 | H20: 165674 | I20: 193287 | J20: 6903 | K20: 9205 | L20: 11505 | M20: 13806 | N20: 16107 | P20: M | Q20: 税金 | R20: 90610
A21: ⑩ | B21: 保健医療 | C21: 円 | D21: 13065 | E21: =ROUND($D21/$D$6*E$4*12,0) -> 28679 | F21: 38239 | G21: 47799 | H21: 57359 | I21: 66918 | J21: =ROUND($D21/$D$6*J$4,0) -> 2390 | K21: 3187 | L21: 3983 | M21: 4780 | N21: 5577 | P21: N | Q21: 保険料・ローン支払い | R21: 19614
A22: ⑪ | B22: 教養娯楽・その他 | C22: 円 | D22: 96862 | E22: 212624 | F22: 283499 | G22: 354373 | H22: 425248 | I22: 496122 | J22: 17719 | K22: 23625 | L22: 29531 | M22: 35437 | N22: 41344
A23: ⑫ | B23: 教育 | C23: 円 | D23: 10123 | G23: =ROUND($D23*G$4*12,0) -> 121476 | L23: =ROUND($D23*L$28,0) -> 10123
A24: ⑬ | B24: 任意保険料ほか | C24: 円 | D24: 20897 | E24: =ROUND($D24/$D$6*E$4*12,0) -> 45871 | F24: =ROUND($D24/$D$6*F$4*12,0) -> 61162 | G24: =ROUND($D24/$D$6*G$4*12,0) -> 76452 | H24: =ROUND($D24/$D$6*H$4*12,0) -> 91743 | I24: =ROUND($D24/$D$6*I$4*12,0) -> 107033 | J24: =ROUND($D24/$D$6*J$4,0) -> 3823 | K24: =ROUND($D24/$D$6*K$4,0) -> 5097 | L24: =ROUND($D24/$D$6*L$4,0) -> 6371 | M24: =ROUND($D24/$D$6*M$4,0) -> 7645 | N24: =ROUND($D24/$D$6*N$4,0) -> 8919
A25: ⑭ | B25: 税金・社会保険料 | C25: 円 | D25: 112600 | G25: 411951 | L25: 34329
Q26: 食費 | R26: 23982 | S26: ○
B27: Ⅱ 単身世帯（勤労世帯のみ比較） | E27: 年間 | J27: 1ヶ月 | P27: A | Q27: 生活用品 | R27: 6440 | S27: ○
B28: 用途分類 | C28: 単位 | D28: 小都市・町村 | E28: 0.6 | F28: 0.8 | G28: 1 | H28: 1.2 | I28: 1.4 | J28: 0.6 | K28: 0.8 | L28: 1 | M28: 1.2 | N28: 1.4 | P28: B | Q28: 衣類 | R28: 6498 | S28: ○
A29: ① | B29: 食料 | C29: 円 | D29: 25711 | E29: =ROUND($D29*E$28*12,0) -> 185119 | F29: 246826 | G29: 308532 | H29: 370238 | I29: 431945 | J29: =ROUND($D29*J$28,0) -> 15427 | K29: =ROUND($D29*K$28,0) -> 20569 | L29: =ROUND($D29*L$28,0) -> 25711 | M29: =ROUND($D29*M$28,0) -> 30853 | N29: =ROUND($D29*N$28,0) -> 35995 | P29: C | Q29: 美容代 | R29: 6256 | S29: ○
A30: ② | B30: 水道光熱費 | C30: 円 | D30: 10198 | E30: 73426 | F30: 97901 | G30: 122376 | H30: 146851 | I30: 171326 | J30: =ROUND($D30*J$28,0) -> 6119 | K30: 8158 | L30: 10198 | M30: 12238 | N30: 14277 | P30: D | Q30: 家賃 | R30: 20000
A31: ③ | B31: 生活用品費 | C31: 円 | D31: 10012 | E31: 72086 | F31: 96115 | G31: 120144 | H31: 144173 | I31: 168202 | J31: 6007 | K31: 8010 | L31: 10012 | M31: 12014 | N31: 14017 | P31: E | Q31: 水道光熱費 | R31: 10953 | S31: ○
A32: ④ | B32: 衣類 | C32: 円 | D32: 6143 | E32: 44230 | F32: 58973 | G32: 73716 | H32: 88459 | I32: 103202 | J32: 3686 | K32: 4914 | L32: 6143 | M32: 7372 | N32: 8600 | P32: F | Q32: 家電・家具費 | R32: 1909 | S32: ○
A33: ⑤ | B33: 美容代 | C33: 円 | D33: 6459 | E33: 46505 | F33: 62006 | G33: 77508 | H33: 93010 | I33: 108511 | J33: 3875 | K33: 5167 | L33: 6459 | M33: 7751 | N33: 9043 | P33: G | Q33: 通信費 | R33: 8911 | S33: ○
A34: ⑥ | B34: 家電・家具費 | C34: 円 | D34: 2898 | E34: 20866 | F34: 27821 | G34: 34776 | H34: 41731 | I34: 48686 | J34: 1739 | K34: 2318 | L34: 2898 | M34: 3478 | N34: 4057 | P34: H | Q34: 自動車維持費 | R34: 13981 | S34: ○
B35: ③～⑥ | E35: =SUM(E31:E34) -> 183687 | F35: 244915 | G35: 306144 | H35: 367373 | I35: 428601 | J35: =SUM(J31:J34) -> 15307 | K35: =SUM(K31:K34) -> 20409 | L35: 25512 | M35: 30615 | N35: 35717 | P35: I | Q35: 交通費 | R35: 2423 | S35: ○
A36: ⑦ | B36: 通信費 | C36: 円 | D36: 5400 | E36: =ROUND($D36*E$28*12,0) -> 38880 | F36: 51840 | G36: 64800 | H36: 77760 | I36: 90720 | J36: 3240 | K36: 4320 | L36: 5400 | M36: 6480 | N36: 7560 | P36: J | Q36: 保健医療費 | R36: 6533 | S36: ○
A37: ⑧ | B37: 自動車維持費 | C37: 円 | D37: 14279 | E37: 102809 | F37: 137078 | G37: 171348 | H37: 205618 | I37: 239887 | J37: 8567 | K37: 11423 | L37: 14279 | M37: 17135 | N37: 19991 | P37: K | Q37: 娯楽・その他 | R37: 51791 | S37: ○
A38: ⑨ | B38: 交通費 | C38: 円 | D38: 4701 | E38: 33847 | F38: 45130 | G38: 56412 | H38: 67694 | I38: 78977 | J38: 2821 | K38: 3761 | L38: 4701 | M38: 5641 | N38: 6581 | P38: L | Q38: 教育費 | R38: -
B39: ⑧～⑨ | E39: =SUM(E37:E38) -> 136656 | F39: 182208 | G39: 227760 | H39: 273312 | I39: 318864 | J39: =SUM(J37:J38) -> 11388 | K39: =SUM(K37:K38) -> 15184 | L39: 18980 | M39: 22776 | N39: 26572 | P39: M | Q39: 税金 | R39: 53366
A40: ⑩ | B40: 保健医療 | C40: 円 | D40: 6644 | E40: =ROUND($D40*E$28*12,0) -> 47837 | F40: 63782 | G40: 79728 | H40: 95674 | I40: 111619 | J40: 3986 | K40: 5315 | L40: 6644 | M40: 7973 | N40: 9302 | P40: N | Q40: 保険料・ローン支払い | R40: 10493 | S40: ○
A41: ⑪ | B41: 教養娯楽・その他 | C41: 円 | D41: 65256 | E41: 469843 | F41: 626458 | G41: 783072 | H41: 939686 | I41: 1096301 | J41: 39154 | K41: 52205 | L41: 65256 | M41: 78307 | N41: 91358 | R41: =SUM(9,R26:R40)-R39 -> 170179
A42: ⑬ | B42: 任意保険料ほか | C42: 円 | D42: 9407 | E42: 67730 | F42: 90307 | G42: 112884 | H42: 135461 | I42: 158038 | J42: 5644 | K42: 7526 | L42: 9407 | M42: 11288 | N42: 13170
A43: ⑭ | B43: 税金・社会保険料 | C43: 円 | D43: 53444 | G43: =ROUND($D43*G$28*12,0) -> 641328 | L43: 53444
B46: 学習費の根拠
B47: 学習費 | C47: （万円） | D47: 10万人未満 | E47: 10万人以上 30万人未満 | F47: 採用値
A48: ① | B48: 公立幼稚園 | D48: 14.6 | E48: 16.5 | F48: =ROUND(AVERAGE(D48:E48),1) -> 15.6
A49: ② | B49: 公立小学校 | D49: 28.4 | E49: 33 | F49: =ROUND(AVERAGE(D49:E49),1) -> 30.7
A50: ③ | B50: 公立中学校 | D50: 45.3 | E50: 55.6 | F50: 50.5
A51: ④ | B51: 公立高校 | D51: 56.7 | F51: 56.7
A52: ⑤ | B52: 大学 | D52: 149.9 | F52: 149.9

Sheet 営農SL_DB (hidden)
B1: 選択品目 | N1: 1 | O1: 2 | P1: 3 | Q1: 4 | R1: 5
B2: 最大営農時間 | E2: ←”D2” | N2: 夏秋なす | O2: オクラ | P2: 露地スナップえんどう | Q2: 露地いんげん | R2: サトイモ
A3: １アール当たりの労働時間 | B3: １月 | C3: 上 | D3: =IF($D$1="","",HLOOKUP($D$1,$N$2:$R$45,2,FALSE)) ->  | K3: 1a当たり労働時間 | L3: 1 | M3: 上 | N3: 0 | O3: 0 | P3: 0 | Q3: 0 | R3: 0
C4: 中 | D4: =IF($D$1="","",HLOOKUP($D$1,$N$2:$R$45,3,FALSE)) ->  | M4: 中 | N4: 0 | O4: 0 | P4: 0 | Q4: 0 | R4: 0
C5: 下 | D5: =IF($D$1="","",HLOOKUP($D$1,$N$2:$R$45,4,FALSE)) ->  | M5: 下 | N5: 0 | O5: 0 | P5: 0 | Q5: 0 | R5: 0
B6: ２月 | C6: 上 | D6: =IF($D$1="","",HLOOKUP($D$1,$N$2:$R$45,5,FALSE)) ->  | L6: 2 | M6: 上 | N6: 0 | O6: 0 | P6: 0 | Q6: 0 | R6: 0
C7: 中 | D7: =IF($D$1="","",HLOOKUP($D$1,$N$2:$R$45,6,FALSE)) ->  | M7: 中 | N7: 0 | O7: 0 | P7: 0 | Q7: 0 | R7: 0
C8: 下 | D8: =IF($D$1="","",HLOOKUP($D$1,$N$2:$R$45,7,FALSE)) ->  | M8: 下 | N8: 0 | O8: 0 | P8: 0 | Q8: 0 | R8: 0
B9: ３月 | C9: 上 | D9: =IF($D$1="","",HLOOKUP($D$1,$N$2:$R$45,8,FALSE)) ->  | L9: 3 | M9: 上 | N9: 0 | O9: 0 | P9: 0 | Q9: 0 | R9: 0
C10: 中 | D10: =IF($D$1="","",HLOOKUP($D$1,$N$2:$R$45,9,FALSE)) ->  | M10: 中 | N10: 0 | O10: 0 | P10: 0 | Q10: 0 | R10: 2
C11: 下 | D11: =IF($D$1="","",HLOOKUP($D$1,$N$2:$R$45,10,FALSE)) ->  | M11: 下 | N11: 0 | O11: 0.5 | P11: 0 | Q11: 0 | R11: 3.4
B12: ４月 | C12: 上 | D12: =IF($D$1="","",HLOOKUP($D$1,$N$2:$R$45,11,FALSE)) ->  | L12: 4 | M12: 上 | N12: 0 | O12: 2 | P12: 0 | Q12: 0 | R12: 0.6
C13: 中 | D13: =IF($D$1="","",HLOOKUP($D$1,$N$2:$R$45,12,FALSE)) ->  | M13: 中 | N13: 0 | O13: 0.3 | P13: 0 | Q13: 0 | R13: 0
C14: 下 | D14: =IF($D$1="","",HLOOKUP($D$1,$N$2:$R$45,13,FALSE)) ->  | M14: 下 | N14: 1 | O14: 2.2 | P14: 0 | Q14: 0 | R14: 0.4
B15: ５月 | C15: 上 | D15: =IF($D$1="","",HLOOKUP($D$1,$N$2:$R$45,14,FALSE)) ->  | L15: 5 | M15: 上 | N15: 0 | O15: 1.4 | P15: 0 | Q15: 0 | R15: 0.3
C16: 中 | D16: =IF($D$1="","",HLOOKUP($D$1,$N$2:$R$45,15,FALSE)) ->  | M16: 中 | N16: 2.6 | O16: 1.2 | P16: 0 | Q16: 0 | R16: 0.4
C17: 下 | D17: =IF($D$1="","",HLOOKUP($D$1,$N$2:$R$45,16,FALSE)) ->  | M17: 下 | N17: 2 | O17: 0.6 | P17: 0 | Q17: 0 | R17: 0.3
B18: ６月 | C18: 上 | D18: =IF($D$1="","",HLOOKUP($D$1,$N$2:$R$45,17,FALSE)) ->  | L18: 6 | M18: 上 | N18: 1 | O18: 3 | P18: 0 | Q18: 0 | R18: 0.7
C19: 中 | D19: =IF($D$1="","",HLOOKUP($D$1,$N$2:$R$45,18,FALSE)) ->  | M19: 中 | N19: 0.3 | O19: 8.9 | P19: 0 | Q19: 0 | R19: 0.3
C20: 下 | D20: =IF($D$1="","",HLOOKUP($D$1,$N$2:$R$45,19,FALSE)) ->  | M20: 下 | N20: 0 | O20: 12 | P20: 0 | Q20: 0 | R20: 0.4
B21: ７月 | C21: 上 | D21: =IF($D$1="","",HLOOKUP($D$1,$N$2:$R$45,20,FALSE)) ->  | L21: 7 | M21: 上 | N21: 0.3 | O21: 13.43333333 | P21: 0 | Q21: 1 | R21: 0.3
C22: 中 | D22: =IF($D$1="","",HLOOKUP($D$1,$N$2:$R$45,21,FALSE)) ->  | M22: 中 | N22: 0 | O22: 14.86666667 | P22: 0 | Q22: 0.8 | R22: 0.4
C23: 下 | D23: =IF($D$1="","",HLOOKUP($D$1,$N$2:$R$45,22,FALSE)) ->  | M23: 下 | N23: 0 | O23: 14.76666667 | P23: 0 | Q23: 0 | R23: 0.3
B24: ８月 | C24: 上 | D24: =IF($D$1="","",HLOOKUP($D$1,$N$2:$R$45,23,FALSE)) ->  | L24: 8 | M24: 上 | N24: 0.3 | O24: 15.8 | P24: 0.8 | Q24: 1.8 | R24: 0.3
C25: 中 | D25: =IF($D$1="","",HLOOKUP($D$1,$N$2:$R$45,24,FALSE)) ->  | M25: 中 | N25: 4.3 | O25: 16.1 | P25: 2.3 | Q25: 0.4 | R25: 0.3
C26: 下 | D26: =IF($D$1="","",HLOOKUP($D$1,$N$2:$R$45,25,FALSE)) ->  | M26: 下 | N26: 6.6 | O26: 15.8 | P26: 1 | Q26: 0 | R26: 0.3
B27: ９月 | C27: 上 | D27: =IF($D$1="","",HLOOKUP($D$1,$N$2:$R$45,26,FALSE)) ->  | L27: 9 | M27: 上 | N27: 9.3 | O27: 14.06666667 | P27: 8.5 | Q27: 0.7 | R27: 0.3
C28: 中 | D28: =IF($D$1="","",HLOOKUP($D$1,$N$2:$R$45,27,FALSE)) ->  | M28: 中 | N28: 11.1 | O28: 12.03333333 | P28: 0.8 | Q28: 0.3 | R28: 0
C29: 下 | D29: =IF($D$1="","",HLOOKUP($D$1,$N$2:$R$45,28,FALSE)) ->  | M29: 下 | N29: 12.3 | O29: 9.7 | P29: 4.5 | Q29: 8.3 | R29: 0
B30: １０月 | C30: 上 | D30: =IF($D$1="","",HLOOKUP($D$1,$N$2:$R$45,29,FALSE)) ->  | L30: 10 | M30: 上 | N30: 12.6 | O30: 6.666666667 | P30: 5.9 | Q30: 11.5 | R30: 0
C31: 中 | D31: =IF($D$1="","",HLOOKUP($D$1,$N$2:$R$45,30,FALSE)) ->  | M31: 中 | N31: 15.3 | O31: 4 | P31: 9.5 | Q31: 13.9 | R31: 0
C32: 下 | D32: =IF($D$1="","",HLOOKUP($D$1,$N$2:$R$45,31,FALSE)) ->  | M32: 下 | N32: 15.6 | O32: 0 | P32: 12.6 | Q32: 17.9 | R32: 0
B33: １１月 | C33: 上 | D33: =IF($D$1="","",HLOOKUP($D$1,$N$2:$R$45,32,FALSE)) ->  | L33: 11 | M33: 上 | N33: 12.3 | O33: 0 | P33: 16.1 | Q33: 20.3 | R33: 4.5
C34: 中 | D34: =IF($D$1="","",HLOOKUP($D$1,$N$2:$R$45,33,FALSE)) ->  | M34: 中 | N34: 12.6 | O34: 0 | P34: 15.5 | Q34: 16 | R34: 6.75
C35: 下 | D35: =IF($D$1="","",HLOOKUP($D$1,$N$2:$R$45,34,FALSE)) ->  | M35: 下 | N35: 10.5 | O35: 0 | P35: 12 | Q35: 9.6 | R35: 11.25
B36: １２月 | C36: 上 | D36: =IF($D$1="","",HLOOKUP($D$1,$N$2:$R$45,35,FALSE)) ->  | L36: 12 | M36: 上 | N36: 9 | O36: 0 | P36: 12 | Q36: 0 | R36: 22.5
C37: 中 | D37: =IF($D$1="","",HLOOKUP($D$1,$N$2:$R$45,36,FALSE)) ->  | M37: 中 | N37: 6 | O37: 0 | P37: 9 | Q37: 0 | R37: 22.5
C38: 下 | D38: =IF($D$1="","",HLOOKUP($D$1,$N$2:$R$45,37,FALSE)) ->  | M38: 下 | N38: 3 | O38: 0 | P38: 6 | Q38: 0 | R38: 22.5
B39: 計 | D39: =IF($D$1="","",HLOOKUP($D$1,$N$2:$R$45,38,FALSE)) ->  | L39: 計 | N39: 148 | O39: 169.3333333 | P39: 116.5 | Q39: 102.5 | R39: 101
A40: 1a当たり | B40: 農業収入 | D40: =IF($D$1="","",HLOOKUP($D$1,$N$2:$R$45,39,FALSE)) ->  | K40: 1a当たり | L40: 農業売上 | N40: 135000 | O40: 120000 | P40: 150000 | Q40: 120000 | R40: 120000
C41: 単収(kg) | D41: =IF($D$1="","",HLOOKUP($D$1,$N$2:$R$45,40,FALSE)) ->  | M41: 単収(kg) | N41: 450 | O41: 200 | P41: 100 | Q41: 120 | R41: 200
C42: 単価（円/kg） | D42: =IF($D$1="","",HLOOKUP($D$1,$N$2:$R$45,41,FALSE)) ->  | M42: 単価（円/kg） | N42: 300 | O42: 600 | P42: 1500 | Q42: 1000 | R42: 600
B43: 農業経営費 | D43: =IF($D$1="","",HLOOKUP($D$1,$N$2:$R$45,42,FALSE)) ->  | L43: 農業経営費 | N43: 58203 | O43: 43599 | P43: 81988.2 | Q43: 63438.2 | R43: 42111
B44: 初年度経営費 | D44: =IF($D$1="","",HLOOKUP($D$1,$N$2:$R$45,43,FALSE)) ->  | L44: 初年度経営費 | N44: 455000 | O44: 455000 | P44: 455000 | Q44: 455000 | R44: 455000
A45: 1a当最大作業時間（週） | D45: =IF($D$1="","",HLOOKUP($D$1,$N$2:$R$45,44,FALSE)) ->  | K45: 1a当最大作業時間（週） | N45: =ROUND(7/10*15.6,1) -> 10.9 | O45: =ROUND(7/10*16.1,1) -> 11.3 | P45: =ROUND(7/10*16.1,1) -> 11.3 | Q45: =ROUND(7/10*20.3,1) -> 14.2 | R45: =ROUND(7/10*22.5,1) -> 15.8
A46: 限界面積(a) | D46: =IF(D2="","",ROUND(D2/D45,1)) ->  | N46: 管理機：￥180,000（中古の場合） | O46: 管理機：￥180,000（中古の場合） | P46: 管理機：￥180,000（中古の場合） | Q46: 管理機：￥180,000（中古の場合） | R46: 管理機：￥180,000（中古の場合）
B47: 年目 | E47: 1年目 | F47: 2年目 | G47: 3年目 | H47: 4年目 | I47: 5年目 | N47: 作業用車両※軽トラなど：￥200,000（中古の場合） | O47: 作業用車両※軽トラなど：￥200,000（中古の場合） | P47: 作業用車両※軽トラなど：￥200,000（中古の場合） | Q47: 作業用車両※軽トラなど：￥200,000（中古の場合） | R47: 作業用車両※軽トラなど：￥200,000（中古の場合）
A48: 限界面積当たり | B48: 農業売上 | D48: =IF(D46="","",ROUNDUP(D40*D46/1000,0)) ->  | E48: =IF($D48="","",$D48/10) ->  | F48: =IF($D48="","",$D48/10) ->  | J48: （収入） | N48: 動力噴霧機：￥45,000（中古の場合） | O48: 背負い動力噴霧機：￥45,000（新品の場合） | P48: 動力噴霧機：￥45,000（中古の場合） | Q48: 動力噴霧機：￥45,000（中古の場合） | R48: 背負い動力噴霧機：￥45000（新品の場合）
C49: 収量(kg) | D49: =D41 ->  | N49: 刈払い機：￥30,000 | O49: 刈払い機：￥30,000 | P49: 刈払い機：￥30,000 | Q49: 刈払い機：￥30,000 | R49: 刈払い機：￥30,000
C50: 単価（円/kg） | D50: =D42 ->  | N50: 白黒マルチ | O50: 白黒マルチ | P50: 白黒マルチ | Q50: 白黒マルチ | R50: 鍬（くわ）
B51: 初年度経費 | D51: =IF(D46="","",ROUNDUP((D43*D46+D44)/1000,0)) ->  | E51: =IF($D51="","",$D51/10) ->  | J51: （１年目支出） | N51: 鍬（くわ） | O51: 鍬（くわ） | P51: 鍬（くわ） | Q51: 鍬（くわ） | R51: 収穫用ハサミ
B52: 2年目以降農業経営費 | D52: =IF(D46="","",ROUNDUP((D43*D46)/1000,0)) ->  | F52: =IF($D52="","",$D52/10) ->  | G52: =IF($D52="","",$D52/10) ->  | H52: =IF($D52="","",$D52/10) ->  | I52: =IF($D52="","",$D52/10) ->  | J52: （２年目以降支出） | N52: 収穫用ハサミ | O52: 収穫用ハサミ | P52: 収穫用ハサミ | Q52: 収穫用ハサミ | R52: 収穫用コンテナほか
D53: （千円） | E53: （万円） | F53: （万円） | G53: （万円） | H53: （万円） | I53: （万円） | N53: 収穫用コンテナ | O53: 収穫用コンテナほか | P53: 収穫用コンテナ | Q53: 収穫用コンテナ
D54: 必要な農具 | N54: 農薬タンク | P54: 農薬タンクほか | Q54: 農薬タンクほか
D55: =IF($D$1="","",IF(HLOOKUP($D$1,$N$2:$R$70,45,FALSE)="","","・" & HLOOKUP($D$1,$N$2:$R$70,45,FALSE))) ->  | N55: 栽培用支柱ほか | P55: 栽培用支柱 | Q55: 栽培用支柱
D56: =IF($D$1="","",IF(HLOOKUP($D$1,$N$2:$R$70,46,FALSE)="","","・" & HLOOKUP($D$1,$N$2:$R$70,46,FALSE))) ->  | P56: 玉巻きppテープ | Q56: 玉巻きppテープ
D57: =IF($D$1="","",IF(HLOOKUP($D$1,$N$2:$R$70,47,FALSE)="","","・" & HLOOKUP($D$1,$N$2:$R$70,47,FALSE))) ->  | P57: キュウリネットほか | Q57: キュウリネットほか
D58: =IF($D$1="","",IF(HLOOKUP($D$1,$N$2:$R$70,48,FALSE)="","","・" & HLOOKUP($D$1,$N$2:$R$70,48,FALSE))) -> 
D59: =IF($D$1="","",IF(HLOOKUP($D$1,$N$2:$R$70,49,FALSE)="","","・" & HLOOKUP($D$1,$N$2:$R$70,49,FALSE))) -> 
D60: =IF($D$1="","",IF(HLOOKUP($D$1,$N$2:$R$70,50,FALSE)="","","・" & HLOOKUP($D$1,$N$2:$R$70,50,FALSE))) -> 
D61: =IF($D$1="","",IF(HLOOKUP($D$1,$N$2:$R$70,51,FALSE)="","","・" & HLOOKUP($D$1,$N$2:$R$70,51,FALSE))) -> 
D62: =IF($D$1="","",IF(HLOOKUP($D$1,$N$2:$R$70,52,FALSE)="","","・" & HLOOKUP($D$1,$N$2:$R$70,52,FALSE))) -> 
D63: =IF($D$1="","",IF(HLOOKUP($D$1,$N$2:$R$70,53,FALSE)="","","・" & HLOOKUP($D$1,$N$2:$R$70,53,FALSE))) -> 
D64: =IF($D$1="","",IF(HLOOKUP($D$1,$N$2:$R$70,54,FALSE)="","","・" & HLOOKUP($D$1,$N$2:$R$70,54,FALSE))) -> 
D65: =IF($D$1="","",IF(HLOOKUP($D$1,$N$2:$R$70,55,FALSE)="","","・" & HLOOKUP($D$1,$N$2:$R$70,55,FALSE))) -> 
D66: =IF($D$1="","",IF(HLOOKUP($D$1,$N$2:$R$70,56,FALSE)="","","・" & HLOOKUP($D$1,$N$2:$R$70,56,FALSE))) -> 
D67: =IF($D$1="","",IF(HLOOKUP($D$1,$N$2:$R$70,57,FALSE)="","","・" & HLOOKUP($D$1,$N$2:$R$70,57,FALSE))) -> 
D68: =IF($D$1="","",IF(HLOOKUP($D$1,$N$2:$R$70,58,FALSE)="","","・" & HLOOKUP($D$1,$N$2:$R$70,58,FALSE))) -> 
D69: =IF($D$1="","",IF(HLOOKUP($D$1,$N$2:$R$70,59,FALSE)="","","・" & HLOOKUP($D$1,$N$2:$R$70,59,FALSE))) -> 
D70: =IF($D$1="","",IF(HLOOKUP($D$1,$N$2:$R$70,60,FALSE)="","","・" & HLOOKUP($D$1,$N$2:$R$70,60,FALSE))) -> 
D71: =IF($D$1="","",IF(HLOOKUP($D$1,$N$2:$R$70,61,FALSE)="","","・" & HLOOKUP($D$1,$N$2:$R$70,61,FALSE))) ->  | N71: ↑↑N46からR70の範囲を必要な農具として結果シートに出力します。↑↑
D72: =IF($D$1="","",IF(HLOOKUP($D$1,$N$2:$R$70,62,FALSE)="","","・" & HLOOKUP($D$1,$N$2:$R$70,62,FALSE))) -> 
D73: =IF($D$1="","",IF(HLOOKUP($D$1,$N$2:$R$70,63,FALSE)="","","・" & HLOOKUP($D$1,$N$2:$R$70,63,FALSE))) ->  | N73: 夏秋なす | O73: オクラ | P73: 露地スナップえんどう | Q73: 露地いんげん | R73: サトイモ
D74: =IF($D$1="","",IF(HLOOKUP($D$1,$N$2:$R$70,64,FALSE)="","","・" & HLOOKUP($D$1,$N$2:$R$70,64,FALSE))) ->  | M74: １月
D75: =IF($D$1="","",IF(HLOOKUP($D$1,$N$2:$R$70,65,FALSE)="","","・" & HLOOKUP($D$1,$N$2:$R$70,65,FALSE))) ->  | M75: ２月
D76: =IF($D$1="","",IF(HLOOKUP($D$1,$N$2:$R$70,66,FALSE)="","","・" & HLOOKUP($D$1,$N$2:$R$70,66,FALSE))) ->  | M76: ３月
D77: =IF($D$1="","",IF(HLOOKUP($D$1,$N$2:$R$70,67,FALSE)="","","・" & HLOOKUP($D$1,$N$2:$R$70,67,FALSE))) ->  | M77: ４月 | O77: △ 播種 | R77: 〇 定植
D78: =IF($D$1="","",IF(HLOOKUP($D$1,$N$2:$R$70,68,FALSE)="","","・" & HLOOKUP($D$1,$N$2:$R$70,68,FALSE))) ->  | M78: ５月 | N78: 〇 定植
D79: =IF($D$1="","",IF(HLOOKUP($D$1,$N$2:$R$70,69,FALSE)="","","・" & HLOOKUP($D$1,$N$2:$R$70,69,FALSE))) ->  | M79: ６月 | O79: ■ 収穫
M80: ７月 | O80: ■ 収穫
D81: 年間の農作業時間 | M81: ８月 | N81: ■ 収穫 | O81: ■ 収穫 | P81: △ 播種 | Q81: △ 播種
D82: =IF($D$1="","",HLOOKUP($D$1,$N$73:$R$85,1,FALSE)) ->  | M82: ９月 | N82: ■ 収穫 | O82: ■ 収穫
C83: 1月 | D83: =IF($D$1="","",IF(HLOOKUP($D$1,$N$73:$R$85,2,FALSE)="","",HLOOKUP($D$1,$N$73:$R$85,2,FALSE))) ->  | M83: １０月 | N83: ■ 収穫 | O83: ■ 収穫 | P83: ■ 収穫 | Q83: ■ 収穫
C84: 2月 | D84: =IF($D$1="","",IF(HLOOKUP($D$1,$N$73:$R$85,3,FALSE)="","",HLOOKUP($D$1,$N$73:$R$85,3,FALSE))) ->  | M84: １１月 | N84: ■ 収穫 | P84: ■ 収穫 | Q84: ■ 収穫 | R84: ■ 収穫
C85: 3月 | D85: =IF($D$1="","",IF(HLOOKUP($D$1,$N$73:$R$85,4,FALSE)="","",HLOOKUP($D$1,$N$73:$R$85,4,FALSE))) ->  | M85: １２月 | P85: ■ 収穫 | Q85: ■ 収穫 | R85: ■ 収穫
C86: 4月 | D86: =IF($D$1="","",IF(HLOOKUP($D$1,$N$73:$R$85,5,FALSE)="","",HLOOKUP($D$1,$N$73:$R$85,5,FALSE))) -> 
C87: 5月 | D87: =IF($D$1="","",IF(HLOOKUP($D$1,$N$73:$R$85,6,FALSE)="","",HLOOKUP($D$1,$N$73:$R$85,6,FALSE))) -> 
C88: 6月 | D88: =IF($D$1="","",IF(HLOOKUP($D$1,$N$73:$R$85,7,FALSE)="","",HLOOKUP($D$1,$N$73:$R$85,7,FALSE))) -> 
C89: 7月 | D89: =IF($D$1="","",IF(HLOOKUP($D$1,$N$73:$R$85,8,FALSE)="","",HLOOKUP($D$1,$N$73:$R$85,8,FALSE))) -> 
C90: 8月 | D90: =IF($D$1="","",IF(HLOOKUP($D$1,$N$73:$R$85,9,FALSE)="","",HLOOKUP($D$1,$N$73:$R$85,9,FALSE))) -> 
C91: 9月 | D91: =IF($D$1="","",IF(HLOOKUP($D$1,$N$73:$R$85,10,FALSE)="","",HLOOKUP($D$1,$N$73:$R$85,10,FALSE))) -> 
C92: 10月 | D92: =IF($D$1="","",IF(HLOOKUP($D$1,$N$73:$R$85,11,FALSE)="","",HLOOKUP($D$1,$N$73:$R$85,11,FALSE))) -> 
C93: 11月 | D93: =IF($D$1="","",IF(HLOOKUP($D$1,$N$73:$R$85,12,FALSE)="","",HLOOKUP($D$1,$N$73:$R$85,12,FALSE))) -> 
C94: 12月 | D94: =IF($D$1="","",IF(HLOOKUP($D$1,$N$73:$R$85,13,FALSE)="","",HLOOKUP($D$1,$N$73:$R$85,13,FALSE))) -> 
